bitfinex/quotes_SOLUSD_20240621
["timestamp","ask_amount","ask_price","bid_price","bid_amount"]
[1718932541657,15.2797,133.76,133.66,0.17]
[1718932541961,15.2797,133.76,133.66,0.51]
[1718932542134,15.2797,133.76,133.66,45.51]
[1718932542334,15.2797,133.76,133.67,20.0]
[1718932542534,15.2797,133.76,133.68,45.0]
[1718932542757,15.2797,133.76,133.69,20.0]
[1718932542956,15.2797,133.76,133.7,45.0]
[1718932543145,15.2797,133.76,133.71,20.0]
[1718932543346,15.2797,133.76,133.72,45.0]
[1718932543547,15.2797,133.76,133.73,20.0]
[1718932543749,15.2797,133.76,133.74,45.0]
[1718932543942,15.2797,133.76,133.75,20.0]
[1718932544144,15.2797,133.76,133.75,65.0]
[1718932545335,7.2813819,133.79,133.75,65.0]
[1718932545533,7.2813819,133.79,133.76,45.0]
[1718932545534,0.8388819,133.79,133.76,45.0]
[1718932545737,0.8388819,133.79,133.77,20.0]
[1718932545960,0.8388819,133.79,133.78,45.0]
[1718932546433,0.8388819,133.79,133.78,65.0]
[1718932548658,0.8388819,133.79,133.78,71.069]
[1718932548840,0.8388819,133.79,133.78,71.579]
[1718932549842,0.8388819,133.79,133.78,71.069]
[1718932550541,0.8388819,133.79,133.78,94.129]
[1718932550764,0.8709183,133.84,133.78,94.129]
[1718932550946,0.8709183,133.84,133.79,88.13]
[1718932551145,0.8709183,133.84,133.8,67.55]
[1718932551354,0.8709183,133.84,133.81,43.06]
[1718932551547,0.8709183,133.84,133.82,45.0]
[1718932551763,0.8709183,133.84,133.83,0.17]
[1718932552065,0.8709183,133.84,133.83,20.51]
[1718932552365,0.8709183,133.84,133.83,81.7525]
[1718932553158,0.8709183,133.84,133.83,104.3025]
[1718932553355,0.8709183,133.84,133.83,149.3725]
[1718932554462,0.1948359,133.89,133.83,81.7525]
[1718932554665,0.1948359,133.89,133.84,45.0]
[1718932554854,0.1948359,133.89,133.85,20.51]
[1718932556769,0.1948359,133.89,133.86,45.0]
[1718932556956,0.1948359,133.89,133.87,20.0]
[1718932557152,0.1948359,133.89,133.88,45.0]
[1718932557362,0.1948359,133.89,133.88,65.0]
[1718932559475,0.1948359,133.89,133.88,65.34]
[1718932559771,0.1948359,133.89,133.88,65.51]
[1718932560343,0.1948359,133.89,133.88,65.0]
[1718932560949,0.1948359,133.89,133.88,20.0]
[1718932561155,0.1948359,133.89,133.86,20.0]
[1718932561366,0.1948359,133.89,133.88,2.992692]
[1718932561569,0.1948359,133.89,133.88,23.162692]
[1718932562371,0.1948359,133.89,133.88,68.332692]
[1718932562671,0.1948359,133.89,133.88,68.502692]
[1718932563155,0.1948359,133.89,133.88,22.992692]
[1718932563355,0.1948359,133.89,133.88,20.0]
[1718932564153,0.1948359,133.89,133.87,2.993285]
[1718932564777,0.1948359,133.89,133.88,0.51]
[1718932566256,0.1948359,133.89,133.88,71.579]
[1718932567059,0.1948359,133.89,133.88,20.0]
[1718932567265,0.6246599,133.91,133.87,2.993285]
[1718932568257,0.6246599,133.91,133.87,25.543285]
[1718932568457,0.6246599,133.91,133.88,20.17]
[1718932568751,0.6246599,133.91,133.88,20.0]
[1718932568975,0.6246599,133.91,133.87,2.993285]
[1718932569558,0.6246599,133.91,133.87,70.613285]
[1718932569771,0.6246599,133.91,133.88,20.0]
[1718932570272,0.6246599,133.91,133.89,45.0]
[1718932570575,0.6246599,133.91,133.9,20.0]
[1718932570778,0.6246599,133.91,133.88,20.0]
[1718932571175,0.6246599,133.91,133.87,2.993285]
[1718932571866,0.6246599,133.91,133.87,20.0]
[1718932572178,0.6246599,133.91,133.85,20.0]
[1718932572377,30.6246599,133.91,133.85,20.0]
[1718932572572,15.2797,133.89,133.83,20.0]
[1718932573066,30.6246599,133.91,133.8,22.3115]
[1718932573249,30.6246599,133.91,133.81,67.62]
[1718932573655,0.6246599,133.91,133.83,67.62]
[1718932573975,0.6246599,133.91,133.84,45.51]
[1718932574198,0.6246599,133.91,133.85,67.62]
[1718932574381,0.6246599,133.91,133.87,6.069]
[1718932574563,0.6246599,133.91,133.88,87.96]
[1718932574758,0.6246599,133.91,133.89,112.79]
[1718932575079,0.6246599,133.91,133.9,87.96]
[1718932575251,21.7222,134.0,133.9,87.96]
[1718932575459,21.7222,134.0,133.91,0.17]
[1718932576166,3.83293329,134.02,133.91,0.17]
[1718932576370,3.83293329,134.02,133.93,67.62]
[1718932576566,3.83293329,134.02,133.94,43.06]
[1718932576767,3.83293329,134.03,133.94,20.51]
[1718932576975,3.83293329,134.01,133.94,20.0]
[1718932577293,3.83293329,134.01,133.95,45.0]
[1718932577475,3.83293329,134.01,133.96,20.0]
[1718932577676,3.83293329,134.01,133.97,45.0]
[1718932577983,3.83293329,134.0,133.98,20.0]
[1718932578184,3.83293329,134.0,133.99,45.0]
[1718932578381,3.83293329,134.0,133.99,42.48135283]
[1718932578596,7.66586659,134.02,133.99,20.0]
[1718932578776,0.17,134.0,133.88,73.689]
[1718932578964,0.17,134.0,133.89,87.96]
[1718932579157,0.34,134.01,133.89,87.96]
[1718932579158,30.0,134.01,133.89,87.96]
[1718932579780,30.0,134.01,133.89,65.41]
[1718932579980,0.51,134.0,133.89,20.17]
[1718932580157,15.2797,133.97,133.89,20.17]
[1718932580560,15.2797,133.97,133.9,45.0]
[1718932580786,15.2797,133.97,133.91,20.0]
[1718932580991,15.2797,133.97,133.92,45.0]
[1718932581288,30.0,133.96,133.93,20.0]
[1718932581490,30.17,133.96,133.93,20.0]
[1718932581963,30.17,133.96,133.85,20.0]
[1718932582167,30.17,133.96,133.84,89.9315]
[1718932582760,30.17,133.96,133.84,22.3115]
[1718932582959,30.0,133.96,133.85,22.55]
[1718932584172,30.0,133.96,133.86,65.51]
[1718932584379,0.51,133.95,133.86,65.0]
[1718932584586,30.0,133.93,133.86,20.0]
[1718932584782,30.0,133.93,133.85,20.0]
[1718932585005,30.0,133.93,133.83,20.0]
[1718932585174,30.0,133.93,133.83,87.62]
[1718932585363,30.0,133.93,133.83,65.07]
[1718932585773,30.0,133.93,133.84,45.0]
[1718932585976,0.34,133.92,133.85,20.0]
[1718932586283,30.34,133.92,133.86,45.0]
[1718932586587,30.34,133.92,133.87,20.0]
[1718932586887,30.0,133.92,133.88,45.0]
[1718932587085,15.2797,133.97,133.89,20.0]
[1718932587299,15.2797,133.97,133.9,45.0]
[1718932587473,15.2797,133.97,133.91,20.0]
[1718932587673,7.66586659,134.0,133.92,45.0]
[1718932587880,15.2797,134.01,133.93,20.51]
[1718932588077,15.2797,134.01,133.94,45.0]
[1718932588481,15.2797,134.01,133.95,20.0]
[1718932588669,15.2797,134.01,133.96,45.0]
[1718932588870,15.2797,134.01,133.97,20.0]
[1718932589088,15.2797,134.01,133.98,45.0]
[1718932589394,15.2797,134.01,133.99,20.0]
[1718932589594,15.2797,134.01,134.0,45.0]
[1718932589804,15.2797,134.01,134.0,65.0]
[1718932590493,15.2797,134.04,134.0,65.0]
[1718932590694,15.2797,134.04,134.01,20.0]
[1718932590873,15.2797,134.04,134.02,45.0]
[1718932593774,15.2797,134.04,134.01,20.0]
[1718932594093,0.51,134.03,133.91,42.55]
[1718932594293,0.34,134.03,133.91,87.62]
[1718932595396,0.34,134.03,133.92,45.51]
[1718932595596,0.17,134.02,133.93,20.0]
[1718932595797,0.34,134.03,133.94,45.17]
[1718932596098,0.34,134.03,133.95,20.0]
[1718932596286,0.34,134.03,133.96,45.0]
[1718932596482,0.34,134.03,133.97,20.0]
[1718932596711,7.83586659,134.05,133.98,45.0]
[1718932596712,7.66586659,134.05,133.98,45.0]
[1718932596994,0.8388819,134.06,133.99,20.0]
[1718932597170,0.8388819,134.06,134.0,45.0]
[1718932597376,0.8388819,134.06,134.01,20.0]
[1718932597676,0.8388819,134.06,134.02,45.0]
[1718932598003,0.8388819,134.06,134.03,20.0]
[1718932598187,0.8388819,134.06,134.04,45.0]
[1718932600371,0.8388819,134.06,134.03,20.0]
[1718932600571,0.8388819,134.06,133.98,20.0]
[1718932600782,0.8388819,134.06,133.99,45.0]
[1718932600974,0.8388819,134.06,134.0,20.17]
[1718932601385,0.8388819,134.06,134.01,45.0]
[1718932601591,0.8388819,134.06,134.02,20.0]
[1718932601899,0.8388819,134.06,134.03,45.0]
[1718932602193,0.8388819,134.06,134.04,20.0]
[1718932602406,0.8388819,134.06,134.05,45.0]
[1718932602699,0.8388819,134.06,134.05,65.0]
[1718932605091,0.8388819,134.06,134.05,20.0]
[1718932605403,0.8388819,134.06,134.0,20.0]
[1718932605579,0.8388819,134.06,134.01,45.0]
[1718932605774,0.8388819,134.06,134.02,20.0]
[1718932605982,0.8388819,134.06,134.03,45.0]
[1718932606181,0.8388819,134.06,134.04,20.0]
[1718932606487,0.8388819,134.06,134.05,45.0]
[1718932606881,0.8388819,134.06,133.97,6.069]
[1718932607083,0.8388819,134.06,133.98,65.0]
[1718932611211,0.34,134.05,133.99,45.0]
[1718932611398,0.17,134.05,134.0,20.0]
[1718932611589,0.8388819,134.06,134.01,45.0]
[1718932611796,0.8388819,134.06,134.02,20.0]
[1718932611992,0.8388819,134.06,134.03,45.0]
[1718932613892,14.29960651,134.06,134.03,45.0]
[1718932617787,14.29970084,134.06,134.03,45.0]
[1718932618215,13.46081894,134.05,134.03,45.0]
[1718932618407,13.46081894,134.04,134.03,45.0]
[1718932618587,13.46081894,134.05,134.03,65.0]
[1718932618796,13.46081894,134.04,134.03,45.0]
[1718932619015,13.46081894,134.05,134.03,65.0]
[1718932619229,13.46081894,134.04,134.03,45.0]
[1718932619523,13.46081894,134.05,134.03,65.0]
[1718932619816,13.46081894,134.04,134.03,45.0]
[1718932619990,13.46081894,134.05,134.03,65.0]
[1718932620193,13.46081894,134.04,134.03,45.0]
[1718932620394,13.46081894,134.04,134.03,20.0]
[1718932620993,13.46270396,134.04,133.98,20.0]
[1718932621194,11.21892265,133.99,133.98,20.0]
[1718932621397,41.59270396,134.02,133.95,20.0]
[1718932621610,13.46270396,134.01,133.95,20.0]
[1718932621923,11.22193293,133.96,133.93,22.3115]
[1718932622294,11.22193293,133.97,133.93,22.3115]
[1718932622496,11.22193293,133.98,133.93,22.3115]
[1718932623293,11.22193293,133.96,133.94,20.0]
[1718932623494,11.22193293,133.95,133.93,20.0]
[1718932623805,13.46270396,133.99,133.92,15.2797]
[1718932624000,11.22180277,133.94,133.93,20.0]
[1718932624609,11.22180277,133.95,133.93,65.51]
[1718932624807,11.22180277,133.96,133.94,45.51]
[1718932625124,15.2797,134.04,133.95,20.0]
[1718932625304,15.2797,134.04,133.96,45.0]
[1718932625620,15.2797,134.04,133.97,20.0]
[1718932625821,15.2797,134.04,133.98,45.0]
[1718932626003,15.2797,134.04,133.99,20.0]
[1718932626199,15.2797,134.04,134.0,45.0]
[1718932628123,15.2797,134.04,133.99,20.0]
[1718932628300,15.2797,134.04,133.93,20.0]
[1718932628502,15.2797,134.04,133.94,45.17]
[1718932628831,11.2207573,133.96,133.94,45.17]
[1718932629000,11.2207573,133.96,133.95,20.0]
[1718932629203,11.2207573,133.96,133.95,65.0]
[1718932630104,15.2797,134.04,133.95,65.0]
[1718932630417,15.2797,134.04,133.96,45.0]
[1718932630617,15.2797,134.04,133.97,20.0]
[1718932630818,15.2797,134.04,133.98,45.0]
[1718932631012,15.2797,134.04,133.99,20.0]
[1718932631320,15.2797,134.04,134.0,45.0]
[1718932632620,15.2797,134.04,134.01,20.0]
[1718932632814,15.2797,134.04,134.02,45.0]
[1718932633124,0.8388819,134.06,134.02,45.0]
[1718932633425,0.8388819,134.06,134.03,20.0]
[1718932633626,0.8388819,134.06,134.04,45.0]
[1718932634130,0.8388819,134.06,134.03,20.0]
[1718932634421,0.8388819,134.06,133.97,20.0]
[1718932634627,0.8388819,134.06,133.98,45.0]
[1718932634929,0.8388819,134.06,133.99,20.0]
[1718932635220,28.9688819,134.06,134.0,45.0]
[1718932635422,28.9688819,134.06,133.99,20.0]
[1718932635423,0.51,134.05,133.99,20.0]
[1718932635614,7.77835993,134.04,133.97,20.0]
[1718932635824,0.34,134.03,133.94,20.0]
[1718932636116,7.77835993,134.04,133.93,22.3115]
[1718932636315,7.77835993,134.05,133.93,44.7515]
[1718932636520,7.77835993,134.04,133.93,44.7515]
[1718932636855,7.77835993,134.02,133.94,45.17]
[1718932637532,7.77835993,134.01,133.95,20.0]
[1718932637827,7.77835993,134.01,133.96,45.0]
[1718932638406,7.77835993,134.0,133.96,45.0]
[1718932638630,7.77835993,134.01,133.96,45.0]
[1718932638831,7.77835993,134.0,133.96,45.0]
[1718932639214,7.77835993,134.0,133.93,22.3115]
[1718932639410,7.77835993,133.98,133.94,20.0]
[1718932639816,7.77835993,133.99,133.94,20.0]
[1718932640226,7.77835993,134.0,133.94,20.0]
[1718932640420,11.22051149,133.95,133.94,20.0]
[1718932640619,11.22051149,133.95,133.94,20.17]
[1718932640926,7.77835993,134.01,133.94,133.02]
[1718932641120,7.77835993,134.01,133.95,45.51]
[1718932641631,7.77835993,134.01,133.96,20.0]
[1718932641832,7.77835993,134.01,133.97,45.0]
[1718932642011,7.77835993,134.01,133.98,20.0]
[1718932642215,7.77835993,134.01,133.99,45.0]
[1718932642428,7.77835993,134.01,134.0,20.0]
[1718932642615,7.77835993,134.01,134.0,65.0]
[1718932643419,7.77835993,134.02,134.0,65.0]
[1718932643730,7.81591882,134.02,134.01,45.0]
[1718932643913,7.81591882,134.02,134.01,65.0]
[1718932644614,15.55671987,134.04,134.01,65.0]
[1718932644817,15.55671987,134.02,134.01,65.0]
[1718932645010,15.55671987,134.03,134.01,65.0]
[1718932645837,15.55671987,134.02,134.01,65.0]
[1718932646513,15.55671987,134.03,134.01,65.0]
[1718932646721,15.55671987,134.03,133.93,50.4415]
[1718932646722,15.55671987,134.03,133.93,22.3115]
[1718932646916,7.81657753,133.98,133.94,20.0]
[1718932647321,7.81657753,133.97,133.94,20.0]
[1718932647535,7.81657753,133.96,133.94,20.0]
[1718932648127,7.81657753,133.95,133.94,20.0]
[1718932649425,7.81657753,133.95,133.94,65.0]
[1718932649624,7.81657753,133.96,133.94,65.0]
[1718932649827,7.81657753,133.96,133.95,45.0]
[1718932650138,15.55671987,133.99,133.95,20.0]
[1718932650321,15.55671987,133.97,133.94,20.0]
[1718932650838,28.13,134.0,133.9,20.0]
[1718932651025,7.81583273,133.91,133.9,20.0]
[1718932651625,15.63166546,133.92,133.87,20.0]
[1718932651833,7.81322262,133.89,133.87,20.0]
[1718932653251,7.81322262,133.89,133.86,20.0]
[1718932653458,15.63166546,133.92,133.86,20.0]
[1718932653459,7.81322262,133.9,133.86,20.0]
[1718932654243,7.81322262,133.9,133.87,45.0]
[1718932654426,7.81322262,133.91,133.88,20.0]
[1718932654744,7.81322262,133.93,133.89,45.0]
[1718932654927,7.81322262,133.92,133.9,20.0]
[1718932655127,7.81322262,133.93,133.91,45.0]
[1718932655329,15.5904597,133.95,133.92,20.0]
[1718932655542,15.9304597,133.94,133.92,20.0]
[1718932659052,15.5904597,133.93,133.92,20.0]
[1718932659252,15.5904597,133.93,133.92,65.0]
[1718932659833,15.9304597,133.94,133.92,65.0]
[1718932660937,15.5904597,133.94,133.92,65.0]
[1718932661250,7.77965942,133.94,133.93,65.0]
[1718932661427,7.77960523,133.94,133.93,65.0]
[1718932661633,7.77960523,133.95,133.93,65.0]
[1718932662253,7.77960523,133.96,133.93,65.0]
[1718932665054,7.77960523,133.97,133.93,65.0]
[1718932668155,7.77960523,133.99,133.95,16.2425]
[1718932668364,7.77960523,134.01,133.96,65.51]
[1718932669157,7.77960523,134.02,133.96,65.51]
[1718932669473,7.77960523,133.98,133.96,20.0]
[1718932669858,7.77960523,133.99,133.96,20.0]
[1718932670275,7.77960523,133.98,133.96,20.0]
[1718932670567,7.77960523,133.99,133.96,20.0]
[1718932670758,7.77960523,133.99,133.97,45.0]
[1718932670950,7.77960523,134.0,133.98,20.0]
[1718932671150,7.77960523,134.0,133.99,45.0]
[1718932671350,7.77960523,134.0,133.99,65.0]
[1718932671874,7.77960523,134.01,133.99,65.0]
[1718932672251,7.77960523,134.01,134.0,20.0]
[1718932672451,7.77960523,134.01,134.0,65.0]
[1718932673248,7.77960523,134.02,134.0,65.0]
[1718932673558,7.77960523,134.02,134.01,45.0]
[1718932673796,7.77960523,134.02,134.01,65.0]
[1718932674073,15.55921046,134.04,134.01,20.0]
[1718932674277,15.89921046,134.03,134.01,20.0]
[1718932674483,15.55921046,134.02,133.96,20.0]
[1718932674783,7.78655218,133.99,133.96,20.0]
[1718932675083,7.78655218,134.0,133.96,20.0]
[1718932675246,7.78655218,134.0,133.97,45.0]
[1718932675449,7.78655218,134.0,133.98,20.0]
[1718932675656,7.78655218,134.0,133.99,45.0]
[1718932675855,15.55921046,134.02,133.99,65.0]
[1718932676056,15.55921046,134.02,134.0,20.0]
[1718932676254,15.55921046,134.02,134.01,45.0]
[1718932676570,15.55921046,134.03,134.01,65.0]
[1718932676770,15.55921046,134.03,134.01,45.0]
[1718932682464,15.55921046,134.03,134.0,20.0]
[1718932682658,28.64,134.02,133.96,20.0]
[1718932682863,7.78628523,133.97,133.95,20.0]
[1718932683073,7.78628523,133.97,133.94,6.069]
[1718932683378,7.78628523,133.96,133.94,6.069]
[1718932683759,7.78628523,133.95,133.94,6.069]
[1718932684181,7.78628523,133.95,133.94,51.069]
[1718932684363,7.78628523,133.96,133.94,71.069]
[1718932684564,7.78628523,133.96,133.95,65.0]
[1718932685256,7.78628523,133.98,133.95,65.0]
[1718932686289,7.78628523,134.0,133.96,0.51]
[1718932686469,7.78628523,134.01,133.96,0.51]
[1718932688788,7.78494723,134.01,133.97,16.2425]
[1718932688986,7.78494723,134.01,133.98,65.0]
[1718932689589,7.78494723,134.02,133.98,65.0]
[1718932690369,7.78494723,134.01,133.98,20.0]
[1718932691175,7.78494723,134.0,133.98,20.0]
[1718932691586,7.78494723,134.01,133.98,20.0]
[1718932691779,7.78494723,134.0,133.99,45.0]
[1718932692092,7.78494723,134.0,133.99,20.0]
[1718932692387,15.2797,134.04,133.95,20.0]
[1718932692388,15.56989447,134.01,133.95,20.0]
[1718932692587,7.78527386,133.98,133.95,20.0]
[1718932692981,7.78527386,133.99,133.95,20.0]
[1718932693383,7.78527386,133.99,133.96,45.0]
[1718932693582,7.78527386,133.99,133.97,20.0]
[1718932693783,7.78527386,133.99,133.98,45.0]
[1718932693989,15.56989447,134.01,133.98,65.0]
[1718932694311,15.56989447,134.0,133.99,20.0]
[1718932694485,15.56989447,134.0,133.94,22.3115]
[1718932694684,7.78648916,133.96,133.9,37.88407]
[1718932694886,7.78648916,133.94,133.87,16.2425]
[1718932695086,7.78648916,133.92,133.87,16.2425]
[1718932695695,7.78648916,133.91,133.87,16.2425]
[1718932696194,7.78959655,133.9,133.84,1.3015799]
[1718932696371,7.78959655,133.9,133.83,16.2425]
[1718932696574,7.78959655,133.87,133.83,16.2425]
[1718932697194,7.78959655,133.86,133.83,16.2425]
[1718932697398,7.78959655,133.87,133.84,20.0]
[1718932697604,7.78959655,133.86,133.84,20.0]
[1718932697783,7.78959655,133.86,133.83,20.0]
[1718932697970,7.78743885,133.84,133.79,20.0]
[1718932698295,21.8922,133.91,133.79,20.0]
[1718932698296,7.78743885,133.85,133.79,20.0]
[1718932698701,7.78743885,133.86,133.79,42.44]
[1718932698995,7.78743885,133.88,133.79,115.64]
[1718932699194,7.78743885,133.89,133.81,67.51]
[1718932699380,7.78743885,133.89,133.82,132.85]
[1718932699575,7.78743885,133.9,133.83,0.17]
[1718932699812,7.78743885,133.89,133.83,45.0]
[1718932700298,7.78743885,133.89,133.84,20.0]
[1718932700494,7.78743885,133.87,133.84,20.0]
[1718932700700,7.78743885,133.86,133.79,20.0]
[1718932701202,7.78743885,133.86,133.76,22.44]
[1718932701503,11.23360833,133.84,133.78,60.330693]
[1718932701685,11.23360833,133.85,133.78,37.890693]
[1718932702403,11.23360833,133.85,133.79,20.0]
[1718932702585,11.23360833,133.86,133.8,45.51]
[1718932702779,11.23360833,133.86,133.81,20.0]
[1718932703093,11.23360833,133.86,133.82,45.0]
[1718932703295,11.23360833,133.86,133.83,20.0]
[1718932703495,11.23360833,133.87,133.84,45.0]
[1718932703680,11.23360833,133.87,133.85,20.0]
[1718932703882,11.23360833,133.87,133.86,45.0]
[1718932704199,11.23360833,133.87,133.86,65.0]
[1718932704401,7.78743885,133.88,133.86,65.0]
[1718932704586,11.23154719,133.87,133.86,65.0]
[1718932705304,19.01898604,133.87,133.86,65.0]
[1718932705594,7.78743885,133.88,133.86,65.0]
[1718932705908,7.78743885,133.88,133.87,20.0]
[1718932706205,7.78743885,133.88,133.87,65.0]
[1718932706501,15.57919311,133.9,133.87,65.0]
[1718932706704,7.761959,133.88,133.87,65.0]
[1718932707305,15.57919311,133.9,133.87,65.0]
[1718932707481,15.57919311,133.9,133.88,45.0]
[1718932707797,43.70919311,133.91,133.88,45.0]
[1718932709323,15.57919311,133.91,133.88,45.0]
[1718932709507,7.75723708,133.9,133.89,20.0]
[1718932709682,7.75723708,133.91,133.89,65.0]
[1718932709885,7.75723708,133.9,133.89,20.0]
[1718932710087,7.75723708,133.9,133.89,65.0]
[1718932710608,15.57919311,133.92,133.89,65.0]
[1718932710795,15.57919311,133.92,133.9,45.0]
[1718932712007,15.57919311,133.93,133.91,20.0]
[1718932712212,15.57919311,133.93,133.92,45.0]
[1718932712397,15.57919311,133.93,133.92,65.0]
[1718932712591,7.75491462,133.93,133.92,65.0]
[1718932713405,7.75491462,133.94,133.92,65.0]
[1718932713994,7.75491462,133.93,133.92,65.0]
[1718932715318,7.75491462,133.94,133.92,65.0]
[1718932715814,0.8388819,134.06,133.93,20.0]
[1718932715815,7.75491462,133.95,133.93,20.0]
[1718932716013,7.75491462,133.95,133.94,45.0]
[1718932716199,7.75491462,133.97,133.94,65.0]
[1718932716408,7.75491462,133.97,133.95,20.0]
[1718932716709,7.75295213,133.97,133.96,45.0]
[1718932717010,7.75295213,133.97,133.96,65.0]
[1718932717312,7.7534382,133.97,133.96,65.0]
[1718932719816,7.7534382,133.97,133.96,20.0]
[1718932720020,28.13,133.98,133.9,20.0]
[1718932720311,7.75417734,133.94,133.9,20.0]
[1718932721017,7.75417734,133.93,133.9,20.0]
[1718932721218,7.75417734,133.94,133.91,45.0]
[1718932721426,7.75417734,133.94,133.92,20.0]
[1718932721605,15.50590426,133.96,133.93,45.0]
[1718932721801,15.50590426,133.96,133.94,20.0]
[1718932722006,15.50590426,133.96,133.95,45.0]
[1718932722204,15.50590426,133.96,133.88,16.2425]
[1718932722205,15.2797,133.96,133.88,16.2425]
[1718932722525,7.75593292,133.93,133.85,22.3115]
[1718932723201,7.75593292,133.94,133.85,89.6615]
[1718932723405,7.75593292,133.93,133.85,89.6615]
[1718932723606,7.75593292,133.95,133.86,112.86]
[1718932723820,7.75593292,133.94,133.86,112.86]
[1718932724019,7.75593292,133.94,133.86,45.51]
[1718932724197,7.75593292,133.94,133.87,20.0]
[1718932724392,7.75593292,133.94,133.88,45.0]
[1718932724599,7.75593292,133.94,133.89,20.0]
[1718932724906,7.75593292,133.94,133.9,45.0]
[1718932725232,7.75593292,133.94,133.91,20.0]
[1718932725407,7.75593292,133.94,133.92,45.0]
[1718932725611,7.75593292,133.93,133.92,45.0]
[1718932725807,7.75593292,133.93,133.91,20.0]
[1718932726005,15.2797,133.94,133.81,6.069]
[1718932726199,7.76189572,133.9,133.81,6.069]
[1718932726408,7.76189572,133.88,133.81,6.069]
[1718932726613,15.84590426,133.91,133.81,6.069]
[1718932726614,7.76189572,133.87,133.81,6.069]
[1718932727011,7.76189572,133.86,133.81,6.069]
[1718932727507,7.76189572,133.86,133.82,20.0]
[1718932728304,7.76189572,133.85,133.82,20.0]
[1718932728615,7.76189572,133.84,133.82,20.0]
[1718932728823,7.76189572,133.85,133.82,20.0]
[1718932729612,7.76189572,133.85,133.83,45.0]
[1718932729806,7.76189572,133.85,133.84,20.0]
[1718932730013,7.76189572,133.85,133.84,65.0]
[1718932731329,15.50590426,133.87,133.84,65.0]
[1718932731721,7.76391369,133.85,133.84,65.0]
[1718932733106,7.76391369,133.86,133.84,65.0]
[1718932733325,15.50590426,133.89,133.85,45.0]
[1718932733522,15.50590426,133.87,133.86,20.0]
[1718932733829,15.50590426,133.88,133.86,65.0]
[1718932734028,15.50590426,133.87,133.86,65.0]
[1718932734930,15.50590426,133.87,133.86,45.0]
[1718932735132,15.50590426,133.87,133.77,22.3115]
[1718932735319,7.76829005,133.83,133.82,20.0]
[1718932735627,7.76829005,133.83,133.82,45.0]
[1718932735826,7.76829005,133.83,133.82,65.0]
[1718932737126,19.00149621,133.83,133.82,65.0]
[1718932738327,11.23320616,133.83,133.82,65.0]
[1718932738531,19.00150433,133.83,133.82,65.0]
[1718932738736,11.23320616,133.84,133.82,65.0]
[1718932738911,11.23320616,133.84,133.83,65.0]
[1718932739515,19.00150433,133.85,133.83,65.0]
[1718932740330,11.23320616,133.84,133.83,65.0]
[1718932740914,7.76829817,133.84,133.83,65.0]
[1718932741309,18.99994794,133.84,133.83,65.0]
[1718932741538,11.23130665,133.85,133.83,65.0]
[1718932741714,11.23130665,133.84,133.83,65.0]
[1718932742320,11.23130665,133.84,133.83,20.0]
[1718932742515,15.53659634,133.86,133.79,20.0]
[1718932742726,11.23324003,133.82,133.79,20.0]
[1718932743328,19.01734946,133.82,133.79,20.0]
[1718932743721,19.01734946,133.82,133.8,45.0]
[1718932743922,19.01734946,133.82,133.81,20.0]
[1718932744231,19.01734946,133.82,133.81,65.0]
[1718932744441,7.78410943,133.82,133.81,20.0]
[1718932744733,15.2797,133.85,133.78,20.0]
[1718932744939,15.58494157,133.81,133.75,20.0]